[Event "Titled Tuesday Blitz March 28 Late 2023"]
[White "Grigoriants, Sergey"]
[Black "Bluebaum, Matthias"]
[WhiteFideId "4130804"]
[BlackFideId "24651516"]
[WhiteElo "2502"]
[BlackElo "2638"]
[Result "1/2-1/2"]
[Round "08"]
[TimeControl "180+2"]
[Date "2023.03.28"]
[WhiteClock "0:00:05"]
[BlackClock "0:00:07"]

1. d4 {[%clk 0:03:00]}  d5 {[%clk 0:03:00]} 2. c4 {[%clk 0:03:00]}  e6 {[%clk 0:03:01]} 3. Nc3 {[%clk 0:03:00]}  Bb4 {[%clk 0:03:01]} 4. e3 {[%clk 0:02:48]}  Nf6 {[%clk 0:03:01]} 5. Bd3 {[%clk 0:02:42]}  dxc4 {[%clk 0:03:00]} 6. Bxc4 {[%clk 0:02:42]}  O-O {[%clk 0:03:00]} 7. Nf3 {[%clk 0:02:31]}  c5 {[%clk 0:03:00]} 8. O-O {[%clk 0:02:31]}  a6 {[%clk 0:03:00]} 9. Bd3 {[%clk 0:02:27]}  cxd4 {[%clk 0:02:38]} 10. exd4 {[%clk 0:02:27]}  Nc6 {[%clk 0:02:37]} 11. Bg5 {[%clk 0:02:27]}  Be7 {[%clk 0:02:24]} 12. Rc1 {[%clk 0:02:27]}  h6 {[%clk 0:02:21]} 13. Bf4 {[%clk 0:02:19]}  Bd6 {[%clk 0:02:12]} 14. Bxd6 {[%clk 0:02:16]}  Qxd6 {[%clk 0:02:13]} 15. Ne4 {[%clk 0:02:16]}  Nxe4 {[%clk 0:01:37]} 16. Bxe4 {[%clk 0:02:17]}  Bd7 {[%clk 0:01:37]} 17. d5 {[%clk 0:01:08]}  exd5 {[%clk 0:01:37]} 18. Qxd5 {[%clk 0:01:09]}  Qe7 {[%clk 0:01:38]} 19. Rfe1 {[%clk 0:01:04]}  Be6 {[%clk 0:01:33]} 20. Qc5 {[%clk 0:01:03]}  Qf6 {[%clk 0:01:31]} 21. Bd5 {[%clk 0:00:56]}  Bxd5 {[%clk 0:01:18]} 22. Qxd5 {[%clk 0:00:54]}  Rad8 {[%clk 0:01:12]} 23. Qb3 {[%clk 0:00:52]}  Rd7 {[%clk 0:01:07]} 24. Rcd1 {[%clk 0:00:42]}  Rfd8 {[%clk 0:01:00]} 25. Rxd7 {[%clk 0:00:34]}  Rxd7 {[%clk 0:01:00]} 26. h3 {[%clk 0:00:34]}  g6 {[%clk 0:00:59]} 27. a3 {[%clk 0:00:28]}  Kg7 {[%clk 0:00:59]} 28. Qb6 {[%clk 0:00:25]}  g5 {[%clk 0:00:48]} 29. b4 {[%clk 0:00:21]}  h5 {[%clk 0:00:48]} 30. Qc5 {[%clk 0:00:19]}  g4 {[%clk 0:00:42]} 31. hxg4 {[%clk 0:00:19]}  hxg4 {[%clk 0:00:43]} 32. Ne5 {[%clk 0:00:15]}  Re7 {[%clk 0:00:33]} 33. Nd3 {[%clk 0:00:16]}  Rxe1+ {[%clk 0:00:31]} 34. Nxe1 {[%clk 0:00:17]}  Nd4 {[%clk 0:00:20]} 35. Nd3 {[%clk 0:00:14]}  Ne2+ {[%clk 0:00:21]} 36. Kf1 {[%clk 0:00:14]}  Ng3+ {[%clk 0:00:21]} 37. Kg1 {[%clk 0:00:11]}  Qa1+ {[%clk 0:00:20]} 38. Kh2 {[%clk 0:00:11]}  Nf1+ {[%clk 0:00:20]} 39. Kg1 {[%clk 0:00:12]}  Nd2+ {[%clk 0:00:09]} 40. Kh2 {[%clk 0:00:12]}  Nf1+ {[%clk 0:00:09]} 41. Kg1 {[%clk 0:00:12]}  Nd2+ {[%clk 0:00:10]} 42. Kh2 {[%clk 0:00:13]}  Qf6 {[%clk 0:00:11]} 43. Qe5 {[%clk 0:00:12]}  Nc4 {[%clk 0:00:10]} 44. Qe4 {[%clk 0:00:10]}  Qh4+ {[%clk 0:00:05]} 45. Kg1 {[%clk 0:00:10]}  Nd6 {[%clk 0:00:04]} 46. Qd4+ {[%clk 0:00:09]}  Qf6 {[%clk 0:00:05]} 47. Qxg4+ {[%clk 0:00:09]}  Kf8 {[%clk 0:00:05]} 48. Qf4 {[%clk 0:00:07]}  Qxf4 {[%clk 0:00:05]} 49. Nxf4 {[%clk 0:00:07]}  Nc4 {[%clk 0:00:06]} 50. a4 {[%clk 0:00:07]}  b6 {[%clk 0:00:02]} 51. Nd5 {[%clk 0:00:07]}  Ke8 {[%clk 0:00:02]} 52. Nc7+ {[%clk 0:00:06]}  Kd7 {[%clk 0:00:02]} 53. Nxa6 {[%clk 0:00:07]}  Nb2 {[%clk 0:00:03]} 54. a5 {[%clk 0:00:07]}  bxa5 {[%clk 0:00:02]} 55. bxa5 {[%clk 0:00:07]}  Nc4 {[%clk 0:00:03]} 56. Nb4 {[%clk 0:00:05]}  Nxa5 {[%clk 0:00:04]} 57. Kh2 {[%clk 0:00:06]}  Nc4 {[%clk 0:00:04]} 58. Kg3 {[%clk 0:00:06]}  Ke6 {[%clk 0:00:05]} 59. Kf4 {[%clk 0:00:06]}  Ne5 {[%clk 0:00:05]} 60. Nc2 {[%clk 0:00:06]}  Ng6+ {[%clk 0:00:05]} 61. Ke4 {[%clk 0:00:06]}  Kf6 {[%clk 0:00:05]} 62. g3 {[%clk 0:00:06]}  Ne5 {[%clk 0:00:05]} 63. Ne3 {[%clk 0:00:06]}  Nd7 {[%clk 0:00:05]} 64. Nd5+ {[%clk 0:00:06]}  Ke6 {[%clk 0:00:05]} 65. Nf4+ {[%clk 0:00:06]}  Kf6 {[%clk 0:00:05]} 66. g4 {[%clk 0:00:06]}  Kg5 {[%clk 0:00:05]} 67. f3 {[%clk 0:00:04]}  Nf6+ {[%clk 0:00:06]} 68. Ke3 {[%clk 0:00:04]}  Nxg4+ {[%clk 0:00:06]} 69. fxg4 {[%clk 0:00:05]}  Kxg4 {[%clk 0:00:07]} 70. Ke4 {[%clk 0:00:05]}  Kg5 {[%clk 0:00:08]} 71. Ke5 {[%clk 0:00:04]}  f6+ {[%clk 0:00:06]} 72. Ke4 {[%clk 0:00:04]}  Kg4 {[%clk 0:00:07]} 73. Nd5 {[%clk 0:00:04]}  f5+ {[%clk 0:00:07]} 74. Ke5 {[%clk 0:00:04]}  Kg5 {[%clk 0:00:08]} 75. Nf4 {[%clk 0:00:05]}  Kg4 {[%clk 0:00:09]} 76. Ne6 {[%clk 0:00:05]}  f4 {[%clk 0:00:07]} 77. Nxf4 {[%clk 0:00:05]} 1/2-1/2


[Site "https://www.chess.com"]

[Event "Titled Tuesday Blitz March 28 Late 2023"]
[White "Sjugirov, Sanan"]
[Black "Ozates, Tuna"]
[WhiteFideId "4189302"]
[BlackFideId "6354521"]
[WhiteElo "2569"]
[BlackElo "2151"]
[Result "1-0"]
[Round "08"]
[TimeControl "180+2"]
[Date "2023.03.28"]
[WhiteClock "0:00:21"]
[BlackClock "0:00:02"]

1. e4 {[%clk 0:03:00]}  c5 {[%clk 0:03:00]} 2. Nf3 {[%clk 0:03:01]}  Nc6 {[%clk 0:03:00]} 3. Bb5 {[%clk 0:03:01]}  g6 {[%clk 0:03:01]} 4. Bxc6 {[%clk 0:03:00]}  bxc6 {[%clk 0:03:02]} 5. O-O {[%clk 0:03:00]}  Bg7 {[%clk 0:03:02]} 6. Re1 {[%clk 0:03:00]}  Nh6 {[%clk 0:03:03]} 7. c3 {[%clk 0:02:53]}  O-O {[%clk 0:03:03]} 8. d3 {[%clk 0:02:53]}  d6 {[%clk 0:03:02]} 9. h3 {[%clk 0:02:53]}  e5 {[%clk 0:03:01]} 10. d4 {[%clk 0:02:50]}  cxd4 {[%clk 0:02:48]} 11. cxd4 {[%clk 0:02:51]}  f6 {[%clk 0:02:48]} 12. Nc3 {[%clk 0:02:51]}  Nf7 {[%clk 0:02:48]} 13. Be3 {[%clk 0:02:50]}  Qe7 {[%clk 0:02:48]} 14. Qc2 {[%clk 0:02:41]}  Bd7 {[%clk 0:02:48]} 15. Rad1 {[%clk 0:02:42]}  a5 {[%clk 0:02:28]} 16. b3 {[%clk 0:02:40]}  f5 {[%clk 0:02:16]} 17. dxe5 {[%clk 0:02:35]}  Nxe5 {[%clk 0:02:17]} 18. Nxe5 {[%clk 0:02:33]}  Bxe5 {[%clk 0:02:14]} 19. f4 {[%clk 0:02:07]}  Bxc3 {[%clk 0:02:14]} 20. Qxc3 {[%clk 0:02:07]}  fxe4 {[%clk 0:02:15]} 21. Bc1 {[%clk 0:02:07]}  d5 {[%clk 0:01:52]} 22. Bb2 {[%clk 0:02:05]}  Kf7 {[%clk 0:01:51]} 23. Re2 {[%clk 0:01:07]}  Ke8 {[%clk 0:01:44]} 24. Qc1 {[%clk 0:00:54]}  a4 {[%clk 0:01:38]} 25. Ba3 {[%clk 0:00:52]}  Qf6 {[%clk 0:01:33]} 26. Bxf8 {[%clk 0:00:51]}  Qxf8 {[%clk 0:01:34]} 27. Qe3 {[%clk 0:00:46]}  axb3 {[%clk 0:01:32]} 28. axb3 {[%clk 0:00:46]}  Rb8 {[%clk 0:01:28]} 29. Ra2 {[%clk 0:00:41]}  Qb4 {[%clk 0:01:24]} 30. Kh1 {[%clk 0:00:29]}  Qxb3 {[%clk 0:01:19]} 31. Qd2 {[%clk 0:00:28]}  e3 {[%clk 0:00:48]} 32. Re1 {[%clk 0:00:26]}  d4 {[%clk 0:00:36]} 33. Qxd4 {[%clk 0:00:25]}  Qxa2 {[%clk 0:00:36]} 34. Qe5+ {[%clk 0:00:24]}  Kf7 {[%clk 0:00:17]} 35. Qxb8 {[%clk 0:00:25]}  e2 {[%clk 0:00:05]} 36. Qe5 {[%clk 0:00:23]}  Qd5 {[%clk 0:00:02]} 37. Qxe2 {[%clk 0:00:22]}  Bxh3 {[%clk 0:00:02]} 38. Qe8+ {[%clk 0:00:20]}  Kg7 {[%clk 0:00:02]} 39. Re7+ {[%clk 0:00:20]}  Kh6 {[%clk 0:00:02]} 40. Qf8+ {[%clk 0:00:20]}  Kh5 {[%clk 0:00:02]} 41. Re5+ {[%clk 0:00:21]} 1-0


[Site "https://www.chess.com"]

[Event "Titled Tuesday Blitz March 28 Late 2023"]
[White "Mendonca, Leon Luke"]
[Black "Duda, Jan-Krzysztof"]
[WhiteFideId "35028561"]
[BlackFideId "1170546"]
[WhiteElo "2464"]
[BlackElo "2790"]
[Result "0-1"]
[Round "08"]
[TimeControl "180+2"]
[Date "2023.03.28"]
[WhiteClock "0:00:01"]
[BlackClock "0:01:55"]

1. e4 {[%clk 0:03:00]}  e5 {[%clk 0:03:00]} 2. Nf3 {[%clk 0:03:01]}  Nc6 {[%clk 0:03:01]} 3. Bc4 {[%clk 0:03:01]}  Bc5 {[%clk 0:03:00]} 4. d3 {[%clk 0:03:00]}  Nf6 {[%clk 0:03:00]} 5. c3 {[%clk 0:02:59]}  O-O {[%clk 0:02:59]} 6. O-O {[%clk 0:02:56]}  d5 {[%clk 0:02:59]} 7. exd5 {[%clk 0:02:55]}  Nxd5 {[%clk 0:03:00]} 8. b4 {[%clk 0:02:54]}  Be7 {[%clk 0:02:59]} 9. Re1 {[%clk 0:02:46]}  Bf6 {[%clk 0:02:58]} 10. Qb3 {[%clk 0:02:00]}  Ndxb4 {[%clk 0:02:46]} 11. Ba3 {[%clk 0:01:26]}  Nxd3 {[%clk 0:02:45]} 12. Rd1 {[%clk 0:01:25]}  e4 {[%clk 0:02:38]} 13. Bxf8 {[%clk 0:01:23]}  Qxf8 {[%clk 0:02:36]} 14. Bxd3 {[%clk 0:01:22]}  exf3 {[%clk 0:02:36]} 15. g3 {[%clk 0:01:15]}  g5 {[%clk 0:02:15]} 16. Nd2 {[%clk 0:01:14]}  g4 {[%clk 0:02:15]} 17. Ne4 {[%clk 0:01:06]}  Be7 {[%clk 0:02:08]} 18. Bf1 {[%clk 0:00:53]}  Rb8 {[%clk 0:02:06]} 19. Qd5 {[%clk 0:00:31]}  Qh6 {[%clk 0:02:04]} 20. Qd2 {[%clk 0:00:20]}  Qxd2 {[%clk 0:02:04]} 21. Rxd2 {[%clk 0:00:20]}  f5 {[%clk 0:02:03]} 22. Re1 {[%clk 0:00:16]}  fxe4 {[%clk 0:02:03]} 23. Rxe4 {[%clk 0:00:17]}  Bf5 {[%clk 0:02:02]} 24. Re1 {[%clk 0:00:08]}  Rd8 {[%clk 0:02:00]} 25. Rxd8+ {[%clk 0:00:08]}  Bxd8 {[%clk 0:02:01]} 26. Rd1 {[%clk 0:00:06]}  Bf6 {[%clk 0:02:00]} 27. Rd5 {[%clk 0:00:05]}  Be6 {[%clk 0:01:59]} 28. Rh5 {[%clk 0:00:04]}  Ne5 {[%clk 0:01:58]} 29. h3 {[%clk 0:00:04]}  Kg7 {[%clk 0:01:56]} 30. hxg4 {[%clk 0:00:02]}  Bxg4 {[%clk 0:01:57]} 31. Rh1 {[%clk 0:00:01]}  h5 {[%clk 0:01:57]} 32. Kh2 {[%clk 0:00:02]}  c6 {[%clk 0:01:56]} 33. Bh3 {[%clk 0:00:01]}  Nd3 {[%clk 0:01:55]} 0-1


[Site "https://www.chess.com"]

[Event "Titled Tuesday Blitz March 28 Late 2023"]
[White "Wagner, Dennis"]
[Black "Svane, Frederik"]
[WhiteFideId "24650684"]
[BlackFideId "12923044"]
[WhiteElo "2470"]
[BlackElo "2502"]
[Result "1-0"]
[Round "08"]
[TimeControl "180+2"]
[Date "2023.03.28"]
[WhiteClock "0:02:30"]
[BlackClock "0:02:08"]

1. d4 {[%clk 0:03:00]}  Nf6 {[%clk 0:02:58]} 2. Nf3 {[%clk 0:03:00]}  e6 {[%clk 0:02:58]} 3. c4 {[%clk 0:03:00]}  d5 {[%clk 0:02:58]} 4. g3 {[%clk 0:03:00]}  Bb4+ {[%clk 0:02:57]} 5. Bd2 {[%clk 0:03:00]}  a5 {[%clk 0:02:57]} 6. Bg2 {[%clk 0:02:56]}  O-O {[%clk 0:02:57]} 7. a3 {[%clk 0:02:49]}  Be7 {[%clk 0:02:57]} 8. Qc2 {[%clk 0:02:50]}  c6 {[%clk 0:02:58]} 9. O-O {[%clk 0:02:50]}  Nbd7 {[%clk 0:02:58]} 10. Rc1 {[%clk 0:02:49]}  b6 {[%clk 0:02:39]} 11. cxd5 {[%clk 0:02:48]}  cxd5 {[%clk 0:02:38]} 12. Bf4 {[%clk 0:02:48]}  Ba6 {[%clk 0:02:35]} 13. Nc3 {[%clk 0:02:48]}  Qc8 {[%clk 0:02:28]} 14. Qb3 {[%clk 0:02:40]}  Bc4 {[%clk 0:02:17]} 15. Qd1 {[%clk 0:02:40]}  Qb7 {[%clk 0:02:16]} 16. Nd2 {[%clk 0:02:36]}  Rac8 {[%clk 0:02:08]} 17. Nxc4 {[%clk 0:02:29]}  Rxc4 {[%clk 0:02:08]} 18. Nxd5 {[%clk 0:02:30]} 1-0


[Site "https://www.chess.com"]

[Event "Titled Tuesday Blitz March 28 Late 2023"]
[White "Hambleton, Aman"]
[Black "Rasulov, Vugar"]
[WhiteFideId "2606577"]
[BlackFideId "13402390"]
[WhiteElo "2511"]
[BlackElo "2509"]
[Result "0-1"]
[Round "08"]
[TimeControl "180+2"]
[Date "2023.03.28"]
[WhiteClock "0:00:04"]
[BlackClock "0:00:11"]

1. d4 {[%clk 0:03:00]}  Nf6 {[%clk 0:02:59]} 2. Bf4 {[%clk 0:03:01]}  e6 {[%clk 0:02:57]} 3. e3 {[%clk 0:03:01]}  Bd6 {[%clk 0:02:57]} 4. Bxd6 {[%clk 0:02:49]}  cxd6 {[%clk 0:02:58]} 5. c4 {[%clk 0:02:50]}  O-O {[%clk 0:02:58]} 6. Nc3 {[%clk 0:02:49]}  b6 {[%clk 0:02:54]} 7. d5 {[%clk 0:02:21]}  Na6 {[%clk 0:02:48]} 8. g3 {[%clk 0:02:03]}  exd5 {[%clk 0:02:45]} 9. Bg2 {[%clk 0:01:49]}  Nc5 {[%clk 0:02:42]} 10. Nxd5 {[%clk 0:01:42]}  Nxd5 {[%clk 0:02:38]} 11. Bxd5 {[%clk 0:01:41]}  Rb8 {[%clk 0:02:38]} 12. Ne2 {[%clk 0:01:33]}  b5 {[%clk 0:02:29]} 13. b3 {[%clk 0:00:25]}  bxc4 {[%clk 0:02:22]} 14. bxc4 {[%clk 0:00:25]}  Qa5+ {[%clk 0:02:19]} 15. Kf1 {[%clk 0:00:24]}  Rb2 {[%clk 0:02:12]} 16. Kg2 {[%clk 0:00:09]}  Rd2 {[%clk 0:02:04]} 17. Qf1 {[%clk 0:00:10]}  Nd3 {[%clk 0:01:56]} 18. Rd1 {[%clk 0:00:09]}  Qxa2 {[%clk 0:01:51]} 19. Rxd2 {[%clk 0:00:07]}  Qxd2 {[%clk 0:01:52]} 20. Qd1 {[%clk 0:00:07]}  Qxd1 {[%clk 0:01:52]} 21. Rxd1 {[%clk 0:00:08]}  Nb4 {[%clk 0:01:50]} 22. Bf3 {[%clk 0:00:07]}  d5 {[%clk 0:01:45]} 23. cxd5 {[%clk 0:00:05]}  Bb7 {[%clk 0:01:36]} 24. Ra1 {[%clk 0:00:03]}  a6 {[%clk 0:01:31]} 25. Nc3 {[%clk 0:00:04]}  Rc8 {[%clk 0:01:30]} 26. Na4 {[%clk 0:00:04]}  Rc2 {[%clk 0:01:14]} 27. Be4 {[%clk 0:00:04]}  Rc4 {[%clk 0:01:13]} 28. Kf3 {[%clk 0:00:03]}  g6 {[%clk 0:01:09]} 29. Nb6 {[%clk 0:00:03]}  Rc7 {[%clk 0:00:58]} 30. Rb1 {[%clk 0:00:03]}  a5 {[%clk 0:00:56]} 31. d6 {[%clk 0:00:03]}  Bxe4+ {[%clk 0:00:55]} 32. Kxe4 {[%clk 0:00:03]}  Rc6 {[%clk 0:00:55]} 33. Nd5 {[%clk 0:00:03]}  Rxd6 {[%clk 0:00:53]} 34. Nxb4 {[%clk 0:00:03]}  Rb6 {[%clk 0:00:54]} 35. Kd4 {[%clk 0:00:03]}  axb4 {[%clk 0:00:53]} 36. Kc5 {[%clk 0:00:03]}  Rc6+ {[%clk 0:00:52]} 37. Kd4 {[%clk 0:00:02]}  Rc2 {[%clk 0:00:52]} 38. f4 {[%clk 0:00:02]}  Rxh2 {[%clk 0:00:51]} 39. g4 {[%clk 0:00:03]}  h6 {[%clk 0:00:40]} 40. Rxb4 {[%clk 0:00:03]}  Kf8 {[%clk 0:00:40]} 41. Ke4 {[%clk 0:00:03]}  Ke7 {[%clk 0:00:35]} 42. Rb7 {[%clk 0:00:03]}  Rh3 {[%clk 0:00:33]} 43. Rb1 {[%clk 0:00:02]}  Rg3 {[%clk 0:00:33]} 44. Rh1 {[%clk 0:00:03]}  Rxg4 {[%clk 0:00:31]} 45. Rxh6 {[%clk 0:00:03]}  Rg3 {[%clk 0:00:32]} 46. Kd3 {[%clk 0:00:03]}  Ke6 {[%clk 0:00:30]} 47. Rh8 {[%clk 0:00:03]}  f6 {[%clk 0:00:28]} 48. Kd4 {[%clk 0:00:03]}  Rg1 {[%clk 0:00:27]} 49. Ke4 {[%clk 0:00:03]}  Rf1 {[%clk 0:00:26]} 50. Kd3 {[%clk 0:00:03]}  Rf2 {[%clk 0:00:24]} 51. Rg8 {[%clk 0:00:03]}  Kf7 {[%clk 0:00:20]} 52. Rd8 {[%clk 0:00:03]}  Ke7 {[%clk 0:00:21]} 53. Rg8 {[%clk 0:00:04]}  Rg2 {[%clk 0:00:21]} 54. Ke4 {[%clk 0:00:04]}  Rg3 {[%clk 0:00:21]} 55. Kd3 {[%clk 0:00:04]}  Kf7 {[%clk 0:00:20]} 56. Rd8 {[%clk 0:00:04]}  Ke6 {[%clk 0:00:20]} 57. Rg8 {[%clk 0:00:04]}  Kf5 {[%clk 0:00:17]} 58. Rd8 {[%clk 0:00:03]}  Rg1 {[%clk 0:00:18]} 59. Ke2 {[%clk 0:00:03]}  Ke6 {[%clk 0:00:17]} 60. Kf2 {[%clk 0:00:02]}  Ra1 {[%clk 0:00:17]} 61. Rg8 {[%clk 0:00:03]}  Kf7 {[%clk 0:00:16]} 62. Rd8 {[%clk 0:00:03]}  Rd1 {[%clk 0:00:16]} 63. Ke2 {[%clk 0:00:03]}  Rd6 {[%clk 0:00:17]} 64. Rb8 {[%clk 0:00:03]}  Rc6 {[%clk 0:00:16]} 65. Rb7 {[%clk 0:00:03]}  Ke6 {[%clk 0:00:17]} 66. Rb8 {[%clk 0:00:03]}  d5 {[%clk 0:00:15]} 67. Rg8 {[%clk 0:00:02]}  Rc2+ {[%clk 0:00:10]} 68. Kf3 {[%clk 0:00:02]}  Kf7 {[%clk 0:00:10]} 69. Rd8 {[%clk 0:00:02]}  Rd2 {[%clk 0:00:11]} 70. Rd6 {[%clk 0:00:02]}  Ke7 {[%clk 0:00:11]} 71. Ra6 {[%clk 0:00:02]}  Rd3 {[%clk 0:00:11]} 72. Ke2 {[%clk 0:00:02]}  Rb3 {[%clk 0:00:11]} 73. Rc6 {[%clk 0:00:02]}  Rb2+ {[%clk 0:00:09]} 74. Kf3 {[%clk 0:00:02]}  Rb3 {[%clk 0:00:10]} 75. Ke2 {[%clk 0:00:02]}  Rb7 {[%clk 0:00:10]} 76. Ra6 {[%clk 0:00:02]}  Rd7 {[%clk 0:00:10]} 77. Kd3 {[%clk 0:00:03]}  Rd6 {[%clk 0:00:11]} 78. Ra7+ {[%clk 0:00:03]}  Ke6 {[%clk 0:00:11]} 79. Rg7 {[%clk 0:00:03]}  Kf5 {[%clk 0:00:11]} 80. Rh7 {[%clk 0:00:02]}  g5 {[%clk 0:00:09]} 81. fxg5 {[%clk 0:00:01]}  fxg5 {[%clk 0:00:10]} 82. Ke2 {[%clk 0:00:01]}  Kg4 {[%clk 0:00:09]} 83. Kd3 {[%clk 0:00:01]}  Kg3 {[%clk 0:00:09]} 84. Rg7 {[%clk 0:00:02]}  g4 {[%clk 0:00:09]} 85. Kd4 {[%clk 0:00:02]}  Rd8 {[%clk 0:00:08]} 86. Rg6 {[%clk 0:00:02]}  Kf3 {[%clk 0:00:08]} 87. Rf6+ {[%clk 0:00:02]}  Kg2 {[%clk 0:00:08]} 88. Rg6 {[%clk 0:00:02]}  g3 {[%clk 0:00:05]} 89. Ke5 {[%clk 0:00:03]}  Kf3 {[%clk 0:00:05]} 90. e4 {[%clk 0:00:02]}  dxe4 {[%clk 0:00:05]} 91. Rf6+ {[%clk 0:00:02]}  Ke3 {[%clk 0:00:06]} 92. Ra6 {[%clk 0:00:02]}  Re8+ {[%clk 0:00:06]} 93. Kf5 {[%clk 0:00:02]}  Kf3 {[%clk 0:00:07]} 94. Ra1 {[%clk 0:00:01]}  g2 {[%clk 0:00:06]} 95. Ra3+ {[%clk 0:00:01]}  e3 {[%clk 0:00:07]} 96. Ra1 {[%clk 0:00:02]}  Kf2 {[%clk 0:00:07]} 97. Kg4 {[%clk 0:00:02]}  g1=Q+ {[%clk 0:00:07]} 98. Rxg1 {[%clk 0:00:03]}  Kxg1 {[%clk 0:00:08]} 99. Kf3 {[%clk 0:00:03]}  e2 {[%clk 0:00:09]} 100. Kg4 {[%clk 0:00:03]}  e1=Q {[%clk 0:00:09]} 101. Kh3 {[%clk 0:00:04]}  Qf2 {[%clk 0:00:09]} 102. Kg4 {[%clk 0:00:04]}  Rg8+ {[%clk 0:00:10]} 103. Kh3 {[%clk 0:00:04]}  Qh2# {[%clk 0:00:11]} 0-1


[Site "https://www.chess.com"]

[Event "Titled Tuesday Blitz March 28 Late 2023"]
[White "Djokic, Mihailo"]
[Black "Bernadskiy, Vitaliy"]
[WhiteFideId "976440"]
[BlackFideId "14100371"]
[WhiteElo "2294"]
[BlackElo "2488"]
[Result "0-1"]
[Round "08"]
[TimeControl "180+2"]
[Date "2023.03.28"]
[WhiteClock "0:00:02"]
[BlackClock "0:00:06"]

1. e4 {[%clk 0:03:00]}  e5 {[%clk 0:02:59]} 2. Nf3 {[%clk 0:03:00]}  Nc6 {[%clk 0:02:59]} 3. Nc3 {[%clk 0:03:00]}  Nf6 {[%clk 0:02:59]} 4. Bb5 {[%clk 0:03:01]}  Bc5 {[%clk 0:02:57]} 5. Nxe5 {[%clk 0:03:01]}  Nxe5 {[%clk 0:02:57]} 6. d4 {[%clk 0:03:01]}  Bd6 {[%clk 0:02:57]} 7. f4 {[%clk 0:03:01]}  Nc6 {[%clk 0:02:56]} 8. e5 {[%clk 0:03:02]}  Be7 {[%clk 0:02:56]} 9. d5 {[%clk 0:03:02]}  Na5 {[%clk 0:02:27]} 10. exf6 {[%clk 0:02:39]}  Bxf6 {[%clk 0:02:27]} 11. Ne4 {[%clk 0:02:33]}  O-O {[%clk 0:02:18]} 12. O-O {[%clk 0:02:29]}  c6 {[%clk 0:02:10]} 13. Be2 {[%clk 0:02:29]}  Re8 {[%clk 0:02:03]} 14. Nxf6+ {[%clk 0:02:13]}  Qxf6 {[%clk 0:02:04]} 15. c3 {[%clk 0:02:07]}  cxd5 {[%clk 0:01:59]} 16. Re1 {[%clk 0:02:07]}  d4 {[%clk 0:01:34]} 17. Bf3 {[%clk 0:02:02]}  Rxe1+ {[%clk 0:01:25]} 18. Qxe1 {[%clk 0:02:03]}  Kf8 {[%clk 0:01:17]} 19. cxd4 {[%clk 0:01:58]}  Nc6 {[%clk 0:01:12]} 20. Be3 {[%clk 0:01:59]}  d6 {[%clk 0:00:58]} 21. d5 {[%clk 0:01:40]}  Nd4 {[%clk 0:00:57]} 22. Be4 {[%clk 0:01:31]}  Bf5 {[%clk 0:00:54]} 23. Bxf5 {[%clk 0:01:26]}  Nxf5 {[%clk 0:00:55]} 24. Bf2 {[%clk 0:01:24]}  Qxb2 {[%clk 0:00:50]} 25. Rb1 {[%clk 0:01:23]}  Qxa2 {[%clk 0:00:50]} 26. Rxb7 {[%clk 0:01:21]}  Qxd5 {[%clk 0:00:49]} 27. Qb1 {[%clk 0:01:19]}  a5 {[%clk 0:00:39]} 28. h3 {[%clk 0:01:07]}  g6 {[%clk 0:00:34]} 29. Rb5 {[%clk 0:01:02]}  Qe6 {[%clk 0:00:31]} 30. g4 {[%clk 0:00:57]}  Ne7 {[%clk 0:00:31]} 31. f5 {[%clk 0:00:56]}  gxf5 {[%clk 0:00:28]} 32. gxf5 {[%clk 0:00:56]}  Qc8 {[%clk 0:00:22]} 33. Qe4 {[%clk 0:00:48]}  a4 {[%clk 0:00:15]} 34. Rb7 {[%clk 0:00:43]}  Nxf5 {[%clk 0:00:10]} 35. Kh2 {[%clk 0:00:18]}  Qe6 {[%clk 0:00:09]} 36. Rxf7+ {[%clk 0:00:15]}  Kxf7 {[%clk 0:00:09]} 37. Qxa8 {[%clk 0:00:15]}  Qe5+ {[%clk 0:00:06]} 38. Kg2 {[%clk 0:00:16]}  Qb5 {[%clk 0:00:02]} 39. Qa7+ {[%clk 0:00:15]}  Kg6 {[%clk 0:00:02]} 40. Qc7 {[%clk 0:00:15]}  Qd5+ {[%clk 0:00:02]} 41. Kf1 {[%clk 0:00:14]}  a3 {[%clk 0:00:02]} 42. h4 {[%clk 0:00:09]}  a2 {[%clk 0:00:01]} 43. h5+ {[%clk 0:00:08]}  Kh6 {[%clk 0:00:02]} 44. Qc1+ {[%clk 0:00:07]}  Kxh5 {[%clk 0:00:01]} 45. Qa1 {[%clk 0:00:07]}  Kg6 {[%clk 0:00:02]} 46. Kg1 {[%clk 0:00:07]}  Qc4 {[%clk 0:00:02]} 47. Qe1 {[%clk 0:00:07]}  Qg4+ {[%clk 0:00:03]} 48. Kh2 {[%clk 0:00:07]}  Qf4+ {[%clk 0:00:03]} 49. Kg2 {[%clk 0:00:07]}  Qe5 {[%clk 0:00:04]} 50. Qd1 {[%clk 0:00:01]}  Qe4+ {[%clk 0:00:04]} 51. Kh3 {[%clk 0:00:01]}  Qf4 {[%clk 0:00:04]} 52. Bg1 {[%clk 0:00:01]}  Qh6+ {[%clk 0:00:03]} 53. Kg2 {[%clk 0:00:01]}  Qg5+ {[%clk 0:00:04]} 54. Kf3 {[%clk 0:00:01]}  Qh5+ {[%clk 0:00:05]} 55. Ke4 {[%clk 0:00:02]}  Qxd1 {[%clk 0:00:05]} 56. Be3 {[%clk 0:00:02]}  Qc2+ {[%clk 0:00:06]} 0-1


[Site "https://www.chess.com"]

[Event "Titled Tuesday Blitz March 28 Late 2023"]
[White "Naroditsky, Daniel"]
[Black "Lewtak, Damian"]
[WhiteFideId "2026961"]
[BlackFideId "1141724"]
[WhiteElo "2633"]
[BlackElo "2302"]
[Result "1-0"]
[Round "08"]
[TimeControl "180+2"]
[Date "2023.03.28"]
[WhiteClock "0:03:01"]
[BlackClock "0:01:50"]

1. d4 {[%clk 0:03:00]}  d5 {[%clk 0:02:56]} 2. Nc3 {[%clk 0:03:01]}  Nf6 {[%clk 0:02:55]} 3. Bf4 {[%clk 0:03:02]}  a6 {[%clk 0:02:55]} 4. e3 {[%clk 0:03:02]}  e6 {[%clk 0:02:51]} 5. Nf3 {[%clk 0:03:02]}  c5 {[%clk 0:02:51]} 6. dxc5 {[%clk 0:03:03]}  Bxc5 {[%clk 0:02:51]} 7. Bd3 {[%clk 0:03:04]}  Bd6 {[%clk 0:02:50]} 8. Bxd6 {[%clk 0:03:03]}  Qxd6 {[%clk 0:02:50]} 9. O-O {[%clk 0:03:04]}  Nc6 {[%clk 0:02:51]} 10. e4 {[%clk 0:03:04]}  d4 {[%clk 0:02:51]} 11. Nb1 {[%clk 0:03:05]}  e5 {[%clk 0:02:45]} 12. Nbd2 {[%clk 0:03:05]}  Be6 {[%clk 0:02:45]} 13. Ng5 {[%clk 0:03:04]}  Bg4 {[%clk 0:02:42]} 14. f3 {[%clk 0:03:05]}  h6 {[%clk 0:02:39]} 15. Nxf7 {[%clk 0:03:04]}  Kxf7 {[%clk 0:02:37]} 16. fxg4 {[%clk 0:03:05]}  Rhf8 {[%clk 0:02:31]} 17. h4 {[%clk 0:03:04]}  Kg8 {[%clk 0:02:29]} 18. g5 {[%clk 0:03:04]}  Nh7 {[%clk 0:02:29]} 19. Qh5 {[%clk 0:03:05]}  b5 {[%clk 0:02:13]} 20. Rf5 {[%clk 0:03:04]}  g6 {[%clk 0:02:08]} 21. Qxh6 {[%clk 0:03:04]}  Ne7 {[%clk 0:01:59]} 22. Raf1 {[%clk 0:03:01]}  Nxf5 {[%clk 0:01:50]} 23. exf5 {[%clk 0:03:01]} 1-0


[Site "https://www.chess.com"]